Cogmind - Beta 15 @@@ ROGUE MODE // 2025.05.22 @ 19:34:59 Player: Ciaphas Result: Destroyed by D-53 Grenadier with Mini Grenade Launcher Performance ------------- Evolutions (0) 0 Regions Visited (2) 400 Robots Destroyed (20) 100 Value Destroyed (498) 498 Prototype IDs (0) 0 Alien Tech Used (0) 0 Bonus (0) 0 TOTAL SCORE: 998 Bonus ------- None Cogmind --------- Core Integrity 0/250 Matter 285/300 Energy 160/160 System Corruption 1% Temperature Cool (0) Movement Walking (190) Ox1 Location -10/Mines Parts ------- > --- POWER (1) -------- Light Nuclear Core > --- PROPULSION (2) --- Aluminum Leg > --- UTILITY (2) ------ Medium Storage Unit Structural Scanner > --- WEAPON (2) ------- (None) > --- INVENTORY (10) --- Heat Sink Large Storage Unit Large Battery (200) Medium Matter Pod (100) Light Armor Plating Light Cannon Grenade Launcher Mining Laser Peak State ------------ > --- POWER ------------ Light Nuclear Core > --- PROPULSION ------- Aluminum Leg Aluminum Leg > --- UTILITY ---------- Medium Storage Unit Visual Processing Unit > --- WEAPON ----------- Particle Gun Light Assault Rifle > --- INVENTORY -------- Light Ion Engine Aluminum Leg Aluminum Leg Heat Sink Large Storage Unit Medium Matter Pod Mining Laser [Rating: 11] Favorites ----------- Power Light Nuclear Core Engine Light Ion Engine Power Core Light Nuclear Core Propulsion Aluminum Leg Leg Aluminum Leg Utility Medium Storage Unit Device Structural Scanner Storage Medium Storage Unit Processor Visual Processing Unit Weapon Particle Gun Energy Gun Particle Gun Ballistic Gun Light Assault Rifle Ballistic Cannon Light Cannon Launcher Grenade Launcher Build | -11 -10 -10 ------- Run | Yrd Mat Min Slots Evolved . | . . . Power . | . . . Propulsion . | . . . Utility . | . . . Weapon . | . . . Parts Attached 20 | 2 17 1 Power 3 | . 3 . Engine 2 | . 2 . Core 1 | . 1 . Reactor . | . . . Propulsion 5 | . 5 . Treads . | . . . Leg 5 | . 5 . Wheel . | . . . Hover . | . . . Flight . | . . . Utility 4 | 1 3 . Device 2 | 1 1 . Storage 1 | . 1 . Processor 1 | . 1 . Hackware . | . . . Protection . | . . . Artifact . | . . . Weapon 8 | 1 6 1 Energy Gun 2 | . 2 . Energy Cannon . | . . . Ballistic Gun 3 | 1 2 . Ballistic Cannon 2 | . 2 . Launcher 1 | . . 1 Special Weapon . | . . . Impact Weapon . | . . . Slashing Weapon . | . . . Piercing Weapon . | . . . Special Melee Weapon . | . . . Unidentified Prototypes . | . . . Parts Lost 4 | . 3 1 Power . | . . . Propulsion 1 | . . 1 Utility 1 | . 1 . Weapon 2 | . 2 . Highest Loss Streak 1 | . 1 1 To Critical Strikes . | . . . Average Backups 5 | 3 5 9 Power . | 1 . . Propulsion . | 2 . . Utility 3 | . 3 5 Weapon 1 | . 1 4 Tool/Special . | . . . Unused Backups 15 | 2 6 7 Power 1 | . 1 . Propulsion 4 | . 4 . Utility 6 | . 1 5 Weapon 4 | 2 . 2 Tool/Special . | . . . Average Slot Usage (%) 94 | . 94 92 Engine 6 | . 6 . Core 7 | . 7 14 Leg 28 | . 28 28 Device 10 | . 10 14 Storage 14 | . 14 14 Processor 1 | . 1 . Energy Gun 8 | . 9 7 Ballistic Gun 9 | . 9 . Ballistic Cannon 5 | . 5 7 Peak Build Rating 11 | 7 11 11 Average Rating 8 | 6 8 8 On Entrance 8 | 6 7 11 Naked Turns . | . . . Heaviest Build 22 | 14 22 22 Greatest Support 20 | 20 20 20 Greatest Overweight (x) 1 | . 1 1 Average Overweight (x) . | . . . Largest Inventory Capacity 10 | 8 10 10 Average Capacity 9 | 8 9 10 Most Carried 10 | 7 10 10 Average Carried 5 | 3 5 8 Final Capacity 10 | 8 10 10 Final Carried 10 | 3 10 8 Class Distribution -------------------- 62% | Scavenger-Mutant 37% | Mutant Dominant Class ---------------- Scavenger-Mutant | -10/Materials Scavenger-Mutant | -10/Mines Resources | -11 -10 -10 ----------- Run | Yrd Mat Min Matter Collected 769 | 252 517 . Remotely 210 | 37 173 . Salvage Created 731 | 102 629 . Parts 30 | 3 27 . Haulers Intercepted 2 | . 2 . Recyclers Shooed 3 | 1 2 . Parts Field Recycled . | . . . Retrieved Matter . | . . . Parts Self-Destructed . | . . . Prevented . | . . . Kills | -11 -10 -10 ------- Run | Yrd Mat Min Combat Hostiles Destroyed 13 | . 13 . Guns 7 | . 7 . Cannons 6 | . 6 . Classes Destroyed 6 | 2 4 . Tunneler 1 | 1 . . Hauler 2 | . 2 . Recycler 2 | 1 1 . Watcher 2 | . 2 . Swarmer 2 | . 2 . Grunt 11 | . 11 . Best Kill Streak 2 | 2 2 . Combat Bots Only 2 | . 2 . Max Kills in Single Turn 1 | 1 1 . Gunslinging . | . . . Exploded . | . . . Melee . | . . . Uniques/NPCs Destroyed . | . . . Combat | -11 -10 -10 -------- Run | Yrd Mat Min Hostile Shots Fired 88 | . 81 7 Missed 22 | . 19 3 Hits 66 | . 62 4 Projectile 66 | . 62 4 AOE 7 | . . 7 Damage Taken 1002 | . 794 208 Core 268 | . 195 73 Absorbed by Shields . | . . . Core Remaining (%) 100 | 100 . . Volleys Fired 72 | 8 64 . Largest 2 | 2 2 . Hottest 85 | 40 85 . Shots Fired 116 | 16 100 . Gun 76 | 16 60 . Cannon 40 | . 40 . Launcher . | . . . Special . | . . . Kinetic 106 | 16 90 . Thermal 10 | . 10 . Explosive . | . . . Electromagnetic . | . . . Robot Hit Streak 10 | 5 10 . Robot Miss Streak 3 | 2 3 . Penetration Max . | . . . Secondary Targets 2 | . 2 . Max Gunslinging Chain 1 | . 1 . Shots Hit Robots 79 | 12 67 . Core Hits 38 | 5 33 . Critical Kills . | . . . Critical Parts Destroyed . | . . . Critical Strikes . | . . . Melee Attacks . | . . . Impact . | . . . Slashing . | . . . Piercing . | . . . Sneak Attacks . | . . . Combat Hostiles . | . . . Follow-up Attacks . | . . . Damage Inflicted 1136 | 118 1018 . Guns 606 | 118 488 . Cannons 495 | . 495 . Explosions . | . . . Melee . | . . . Ramming 35 | . 35 . Kinetic 979 | 118 861 . Thermal 122 | . 122 . Explosive . | . . . Electromagnetic . | . . . Impact . | . . . Slashing . | . . . Piercing . | . . . Highest Corruption 1 | . 1 1 Average Corruption 1 | . 1 1 Corruption Purged . | . . . Corruption Blocked . | . . . Effects 8 | . 6 2 Message Errors 3 | . 3 . Matter Fused 2 | . 1 1 Energy Discharges 1 | . 1 . Parts Rejected 1 | . . 1 Alerts 1 | . 1 . Overload Shots . | . . . Overflow Damage . | . . . Projectiles . | . . . Explosions . | . . . Melee . | . . . Knockbacks 1 | . 1 . Impact . | . . . Kinetic 1 | . 1 . Secondary . | . . . Self-Inflicted Damage . | . . . Shots . | . . . Rammed . | . . . Targets Rammed 10 | . 10 . Kicked 10 | . 10 . Crushed . | . . . Highest Temperature 240 | . 240 . Average Temperature 49 | . 49 . Received Heat Transfer 324 | . 324 . Effects 1 | . 1 . Interference 1 | . 1 . Siege Activations . | . . . Martial Activations . | . . . Shielding Activations . | . . . Robots Disrupted . | . . . Combat Hostiles . | . . . Robots Corrupted . | . . . Combat Hostiles . | . . . Parts Fried . | . . . Impact Corruptions . | . . . Robots Melted . | . . . Combat Hostiles . | . . . Parts Melted 2 | . 2 . Heat Transferred 296 | . 296 . Parts Sabotaged . | . . . Parts Stolen . | . . . Parts Stripped . | . . . Power Chain Reactions . | . . . Alert | -11 -10 -10 ------- Run | Yrd Mat Min Maximum Alert Level . | . . . Low Security (%) 100 | 100 100 100 Level 1 . | . . . Level 2 . | . . . Level 3 . | . . . Level 4 . | . . . Level 5 . | . . . High Security . | . . . Max Security . | . . . Peak Influence 180 | 5 180 6 Initial 6 | . . 6 Average 73 | 2 78 4 Influence Increases 468 | 10 458 . Destroy 0b10 Robot/C 260 | . 260 . Destroy 0b10 Robot/NC 35 | 10 25 . Destroy Leader 68 | . 68 . Successful Hack 29 | . 29 . Disable Machine 15 | . 15 . Destroy Structure 1 | . 1 . Lose Combat Pursuer 60 | . 60 . Influence Decreases 468 | 10 442 16 Entered New Map 10 | . . 10 Time Decay 428 | 10 412 6 Lost Part 30 | . 30 . Squads Dispatched 3 | . 3 . Investigation 3 | . 3 . Extermination . | . . . Reinforcement . | . . . Assault . | . . . Garrison . | . . . Intercept . | . . . Searches Triggered . | . . . Construction Impeded . | . . . Haulers Reinforced . | . . . Active Scanning Responses . | . . . Cargo Convoy Interrupts . | . . . Stealth | -11 -10 -10 --------- Run | Yrd Mat Min Distress Signals 1 | . 1 . Communications Jammed . | . . . Distress Signals . | . . . Times Spotted 25 | . 19 6 Peak Tracking Total 6 | . 5 6 Tactical Retreats 2 | . 2 . Traps | -11 -10 -10 ------- Run | Yrd Mat Min Traps Triggered 3 | . 3 . Indirectly . | . . . Trap Hack Attempts . | . . . Triggered . | . . . Disarmed . | . . . Reprogrammed . | . . . Reused . | . . . Traps Extracted . | . . . Installed . | . . . Triggered . | . . . Machines | -11 -10 -10 ---------- Run | Yrd Mat Min Machines Disabled 2 | . 2 . Max in Single Turn 1 | . 1 . Machines Repaired . | . . . Machines Dismantled . | . . . Machines Sabotaged . | . . . Overloaded Fab Kills . | . . . Hacking | -11 -10 -10 --------- Run | Yrd Mat Min Machines Accessed 8 | . 8 . Terminals 7 | . 7 . Fabricators . | . . . Repair Stations . | . . . Recycling Units 1 | . 1 . Scanalyzers . | . . . Garrison Access . | . . . Total Hacks 18 | . 18 . Successful 11 | . 11 . Failed 7 | . 7 . Catastrophic 1 | . 1 . Database Lockouts . | . . . Manual 14 | . 14 . Terminals 17 | . 17 . Fabricators . | . . . Repair Stations . | . . . Recycling Units 1 | . 1 . Scanalyzers . | . . . Garrison Access . | . . . Terminal Hacks 1 | . 1 . Robot Analysis 1 | . 1 . Fabricator Hacks . | . . . Repair Station Hacks . | . . . Recycling Unit Hacks 1 | . 1 . Report Inventory 1 | . 1 . Scanalyzer . | . . . Garrison Access Hacks . | . . . Unauthorized Hacks 9 | . 9 . Terminals 9 | . 9 . Botnet 2 | . 2 . Skim 7 | . 7 . Fabricators . | . . . Repair Stations . | . . . Recycling Units . | . . . Scanalyzers . | . . . Garrison Access . | . . . Data Cores Recovered . | . . . Used . | . . . Hacking Detections 6 | . 6 . Full Trace Events 1 | . 1 . Feedback Events . | . . . Feedback Blocked . | . . . Robot Schematics Acquired . | . . . Robots Built . | . . . Authchips . | . . . Time . | . . . Total Robot Build Rating . | . . . Part Schematics Acquired . | . . . Parts Built . | . . . Authchips . | . . . Time . | . . . Total Part Build Rating . | . . . Parts Repaired . | . . . Time . | . . . Parts Recycled . | . . . Recycled Matter . | . . . Retrieved Matter . | . . . Retrieved Components . | . . . Parts Scanalyzed . | . . . Part Schematics Acquired . | . . . Parts Damaged . | . . . Bothacking | -11 -10 -10 ------------ Run | Yrd Mat Min Used RIF Installer . | . . . Robots Hacked . | . . . Non-combat . | . . . Combat . | . . . Robot Hacks Applied . | . . . Relay Couplers Released . | . . . Fabnet Peak Effective % . | . . . Robots Rewired . | . . . Allies Hacked . | . . . Hacks Repelled . | . . . Allies | -11 -10 -10 -------- Run | Yrd Mat Min Total Allies . | . . . Largest Group . | . . . Highest-Rated Group . | . . . Highest-Rated Ally . | . . . Total Orders . | . . . Ally Attacks . | . . . Total Damage . | . . . Kills . | . . . Allies Corrupted . | . . . Allies Melted . | . . . Intel | -11 -10 -10 ------- Run | Yrd Mat Min Active Infowar (turns) 839 | . 811 28 Optics 179 | . 179 . Structural 660 | . 632 28 Robot Analysis Total 1 | . 1 . Derelict Logs Recovered . | . . . Drone Launches . | . . . Drone Recoveries . | . . . Exploration | -11 -10 -10 ------------- Run | Yrd Mat Min Turns Passed 1332 | 49 1255 28 Spaces Moved 776 | 19 740 17 Core . | . . . Treads . | . . . Legs 776 | 19 740 17 Wheels . | . . . Hover . | . . . Flight . | . . . Fastest Speed 120 | 120 120 120 Average Speed 133 | 120 133 140 Slowest Speed 190 | 120 190 190 Overloaded Moves . | . . . Propulsion Burnouts . | . . . Robots Hopped . | . . . Potential Cave-ins . | . . . Cave-ins Triggered . | . . . Exploration Rate (%) 38 | 4 99 12 Regions Visited 2 Branch Regions 1 Pre-discovered Areas . | . . . Known Exits Taken 1 | . 1 . Unknown Exits Taken 1 | 1 . . Scrap Searched . | . . . Spaces Dug . | . . . Terrain Destroyed . | . . . Melee . | . . . Projectile . | . . . AOE . | . . . Terrain Rammed . | . . . Walls Destroyed . | . . . Machines Disabled . | . . . Actions | -11 -10 -10 --------- Run | Yrd Mat Min Total 968 | 32 913 23 Wait 55 | . 54 1 Move 774 | 18 739 17 Hop . | . . . Pick Up 9 | . 9 . Fast Attach 8 | 1 7 . Attach 3 | 1 2 . Detach 8 | 1 6 1 Swap 10 | . 9 1 Drop 19 | 3 13 3 Fire 72 | 8 64 . Melee . | . . . Ram . | . . . Kick 10 | . 10 . Crush . | . . . Escape Stasis . | . . . Rewire . | . . . Trap . | . . . Miscellaneous . | . . . Route ------- -11/Scrapyard -10/Materials (discovered 5 exits: *Mat x3 / *Min x2) -10/Mines History --------- Turn | Location | Event 19 | -11/Scrapyard | Discovered new exit (range 2) 50 | -11/Scrapyard | Entered Materials 50 | -10/Materials | Discovered new exit (range 8) 289 | -10/Materials | Discovered new exit (range 7) 308 | -10/Materials | Build established: Mutant 390 | -10/Materials | Core integrity fell below 50% 488 | -10/Materials | Discovered new exit (range 15) 603 | -10/Materials | Discovered new exit (range 10) 798 | -10/Materials | Build established: Scavenger-Mutant 1002 | -10/Materials | Discovered new exit (range 15) 1245 | -10/Materials | Identified exit to Materials 1245 | -10/Materials | Identified exit to Mines 1305 | -10/Materials | Entered Mines 1306 | -10/Mines | Assembled infested the area 1311 | -10/Mines | Assisted by a Guerilla fighting off Assembled 1316 | -10/Mines | Met a Derelict bent on vengeance 1328 | -10/Mines | Core integrity fell below 20% 1333 | -10/Mines | Destroyed by D-53 Grenadier with Mini Grenade Launcher Last Messages --------------- 01294_ >> SKIM: Loading Materials emergency access points (x4)... LOCATION=MINES GOAL=ESCAPE 01306_ ALERT: Infestation in the mines, dispatching Demolisher response squad. 01311_ A derelict emerges from the shadows: "You need to get out of here! I've been tracking a group of Assembled to figure out where they're coming from, and they're closing on this area, come on!" 01313_ Dropped Med. Laser. 01313_ Dropped Particle Gun. 01314_ Dropped Assault Rifle. 01317_ System corrupted: Matter fused (-10). 01327_ C-30 ARC bursts open, deploying its payload. 01327_ D-53 Grenadier unfolds itself. 01329_ D-53 Grenadier suffers critical hit (Destroy). 01330_ Aluminum Leg destroyed. 01330_ 6V-ZLO(h) destroyed. 01330_ as-97354 destroyed. 01331_ as-12332 destroyed. 01333_ System corrupted: Grenade Launcher rejected. Map ----- +----------------------------------------------------+ | ????????????????????????????????????????????? | | ????????????????????????????????????????????? | | ????????????????????????????????????????????? | | ????????????????????????????????????????????? | | ????????????????????????????????????????????? | | ????????????????????????????????????????????? | | ????????????????????????????????????????????? | | ????????????????????????????????????????????? | | ????????????????????????????????????????????? | | ????????????????????????????????????????????? | | ????????????????????????????????????????????? | | ????????????????????????????????????????????? | | ????????????????????????????????????????????? | | ????????????????????????????????????????????? | | ????????????????????????????????????????????? | | ????????????????????????????????????????????? | | ????????????????????????????????????????????? | | ????????????????#########???????????????????? | | ????????????????########### ??????????????? | | ???????????????? ######???????? ?????? | | ??????????????????? ###### ? ??????? | | ??????????????????### ###### ????????? | | ??????????????????### %% a ?????????? | | ??????????????????## % $ ##???????????? | | ????????????????##### ##???????????? | | ????????????????##### @ ##???????????? | | ?????????? #####?????????? | | ????????????######## #####? ####??? | | ????????????######## ##########?? | | ??????????????????## ## #### ###?? | | ?????????????????### d ##### ## ##?? | | ?????????????????## ##### [[[ ##?? | | ?????????????????## % #### ##?? | | ?????????????????## d ##?? | | ?????????????????## ###?? | | ?????????????????### #### ####?? | | ?????????????????#### ##### ###??? | | ??????????????????#### ??##### ###??? | | ???????????????????#### ???##### ##??? | | ????????????????????### ?????#### ##??? | | ?????????????????????### t ???????### ##??? | | ?????????????????????### ?????????######??? | | ???????????????????????## ??????????#####??? | | ???????????????????????###??????????????????? | | ????????????????????????????????????????????? | | ????????????????????????????????????????????? | | ????????????????????????????????????????????? | | ????????????????????????????????????????????? | | ????????????????????????????????????????????? | | ????????????????????????????????????????????? | +----------------------------------------------------+ Best States ------------- Heat Dissipation 25 Energy Generation 14 Energy Capacity 250 Matter Stores 300 Matter Capacity 300 Sight Range 18 Terrain Scan Density 10 Evasion (%) 55 Item Schematics ----------------- None Robot Schematics ------------------ None Fabricated ------------ Nothing Repaired ---------- Nothing Alien Tech Used ----------------- None Achievements -------------- None Challenges ------------ None Game ------ Seed TargetCorruptionMediator Manual? 0 Play Time 00:10:50 Cumulative 51.9 hours Start 2025.05.22 @ 19:24:42 End 2025.05.22 @ 19:34:59 Sessions 1 Manual Loads 0 Difficulty Rogue Special Mode None Game No. 72 Rogue 72 Adventurer 0 Explorer 0 Win Type - Total 2 Types 2/0/0/0/0/0/0/0/0/0 Lore% 32 Gallery% 33 Achievement% 37 Wizard Run 0 Options --------- Layout 0 ASCII 0 Keyboard 0 Movement Numpad Keybinds 0 Fullscreen 2 Font 24/Tamsyn Map View 76x50 Zoom Use 0% Tactical HUD 1 Map Filters NONE Filters NONE Steam 1 RUN: 7c1dee03-30bb-4b32-a8f2-15421b368254